fUST/lending_fUST_20250213
["ID","MTS","AMOUNT","RATE_DAILY","PERIOD"]
[352896236,1739393448777,-560.01,0.00013561,2]
[352896237,1739393448787,-1368.55,0.00013561,2]
[352896238,1739393448798,-947.77,0.00013561,2]
[352896239,1739393448808,-553.87,0.00013561,2]
[352896240,1739393448817,-517.62,0.00013561,2]
[352896241,1739393448827,-870.15,0.00013561,2]
[352896242,1739393448837,-500.0,0.00013561,2]
[352896243,1739393448847,-500.0,0.00013561,2]
[352896244,1739393448857,-503.44,0.00013561,2]
[352896245,1739393448868,-956.76,0.00013561,2]
[352896246,1739393448878,-500.0,0.00013561,2]
[352896247,1739393448887,-596.03,0.00013561,2]
[352896248,1739393448898,-5877.95,0.00013561,2]
[352896249,1739393448911,-536.45,0.00013561,2]
[352896250,1739393448921,-3283.98,0.00013561,2]
[352896251,1739393448931,-942.97,0.00013561,2]
[352896252,1739393448941,-500.0,0.00013561,2]
[352896253,1739393448951,-612.3,0.00013561,2]
[352896254,1739393448961,-2806.17,0.00013561,2]
[352896255,1739393448971,-738.41,0.00013561,2]
[352896256,1739393448981,-1169.21,0.00013561,2]
[352896257,1739393448992,-596.255137,0.00013561,2]
[352896258,1739393449005,-524.79,0.00013561,2]
[352896259,1739393449016,-2937.97,0.00013561,2]
[352896260,1739393449026,-1013.13,0.00013561,2]
[352896261,1739393449036,-1137.31,0.00013561,2]
[352896262,1739393449046,-650.94,0.00013561,2]
[352896263,1739393449057,-555.46,0.00013561,2]
[352896264,1739393449068,-1095.22,0.00013561,2]
[352896265,1739393449079,-6580.78,0.00013561,2]
[352896266,1739393449091,-1042.8,0.00013561,2]
[352896267,1739393449102,-500.0,0.00013561,2]
[352896268,1739393449112,-602.63,0.00013561,2]
[352896269,1739393449121,-818.07,0.00013561,2]
[352896270,1739393449131,-1091.78,0.00013561,2]
[352896271,1739393449142,-1500.0,0.00013626,2]
[352896272,1739393449151,-1421.52,0.00013698,2]
[352896273,1739393449161,-1568.81,0.00013698,2]
[352896274,1739393449172,-747.37,0.00013698,2]
[352896275,1739393449182,-500.0,0.00013698,2]
[352896276,1739393449192,-192.02702315,0.00013698,2]
[352896277,1739393449202,-560.01,0.00013698,2]
[352896278,1739393449212,-1368.55,0.00013698,2]
[352896279,1739393449222,-947.77,0.00013698,2]
[352896280,1739393449231,-553.87,0.00013698,2]
[352896281,1739393449241,-517.62,0.00013698,2]
[352896282,1739393449251,-870.15,0.00013698,2]
[352896283,1739393449263,-633.32,0.00013698,2]
[352896284,1739393449274,-500.0,0.00013698,2]
[352896285,1739393449285,-500.0,0.00013698,2]
[352896286,1739393449295,-500.0,0.00013698,2]
[352896287,1739393449306,-500.0,0.00013698,2]
[352896288,1739393449316,-500.0,0.00013698,2]
[352896289,1739393449328,-500.0,0.00013698,2]
[352896290,1739393449337,-500.0,0.00013698,2]
[352896291,1739393449346,-500.0,0.00013698,2]
[352896292,1739393449356,-503.44,0.00013698,2]
[352896293,1739393449370,-956.76,0.00013698,2]
[352896294,1739393449380,-500.0,0.00013698,2]
[352896295,1739393449390,-596.03,0.00013698,2]
[352896296,1739393449405,-5877.95,0.00013698,2]
[352896297,1739393449415,-536.45,0.00013698,2]
[352896298,1739393449425,-3283.98,0.00013698,2]
[352896299,1739393449434,-942.97,0.00013698,2]
[352896300,1739393449444,-500.0,0.00013698,2]
[352896301,1739393449454,-612.3,0.00013698,2]
[352896302,1739393449464,-2806.17,0.00013698,2]
[352896303,1739393449474,-738.41,0.00013698,2]
[352896304,1739393449484,-1169.21,0.00013698,2]
[352896305,1739393449494,-524.79,0.00013698,2]
[352896306,1739393449505,-2937.97,0.00013698,2]
[352896307,1739393449514,-1013.13,0.00013698,2]
[352896308,1739393449524,-1137.31,0.00013698,2]
[352896309,1739393449533,-650.94,0.00013698,2]
[352896310,1739393449543,-555.46,0.00013698,2]
[352896311,1739393449552,-1095.22,0.00013698,2]
[352896312,1739393449563,-6580.78,0.00013698,2]
[352896313,1739393449572,-1042.8,0.00013698,2]
[352896314,1739393449581,-500.0,0.00013698,2]
[352896315,1739393449590,-602.63,0.00013698,2]
[352896316,1739393449600,-818.07,0.00013698,2]
[352896317,1739393449610,-279.296036,0.00013699,2]
[352896318,1739393449619,-169.083811,0.00013699,2]
[352896319,1739393449628,-1000.0,0.00013702,2]
[352896320,1739393449638,-1421.52,0.00013835,2]
[352896321,1739393449647,-1568.81,0.00013835,2]
[352896322,1739393449656,-747.37,0.00013835,2]
[352896323,1739393449666,-500.0,0.00013835,2]
[352896324,1739393449676,-560.01,0.00013835,2]
[352896325,1739393449685,-1368.55,0.00013835,2]
[352896326,1739393449695,-947.77,0.00013835,2]
[352896327,1739393449704,-553.87,0.00013835,2]
[352896328,1739393449715,-517.62,0.00013835,2]
[352896329,1739393449725,-870.15,0.00013835,2]
[352896330,1739393449735,-500.0,0.00013835,2]
[352896331,1739393449744,-503.44,0.00013835,2]
[352896332,1739393449753,-956.76,0.00013835,2]
[352896333,1739393449764,-500.0,0.00013835,2]
[352896334,1739393449773,-596.03,0.00013835,2]
[352896335,1739393449783,-5877.95,0.00013835,2]
[352896336,1739393449795,-536.45,0.00013835,2]
[352896337,1739393449810,-3283.98,0.00013835,2]
[352896338,1739393449821,-942.97,0.00013835,2]
[352896339,1739393449831,-267.99409197,0.00013835,2]
[352896340,1739393449840,-612.3,0.00013835,2]
[352896341,1739393449850,-2806.17,0.00013835,2]
[352896342,1739393449860,-738.41,0.00013835,2]
[352896343,1739393449869,-1169.21,0.00013835,2]
[352896344,1739393449879,-524.79,0.00013835,2]
[352896345,1739393449890,-2937.97,0.00013835,2]
[352896346,1739393449901,-1013.13,0.00013835,2]
[352896347,1739393449915,-1137.31,0.00013835,2]
[352896348,1739393449926,-650.94,0.00013835,2]
[352896349,1739393449937,-555.46,0.00013835,2]
[352896350,1739393449947,-1095.22,0.00013835,2]
[352896351,1739393449959,-6580.78,0.00013835,2]
[352896352,1739393449969,-1042.8,0.00013835,2]
[352896353,1739393449979,-500.0,0.00013835,2]
[352896354,1739393449990,-602.63,0.00013835,2]
[352896355,1739393450000,-818.07,0.00013835,2]
[352896356,1739393450011,-1421.52,0.00013972,2]
[352896357,1739393450021,-1568.81,0.00013972,2]
[352896358,1739393450031,-747.37,0.00013972,2]
[352896359,1739393450041,-500.0,0.00013972,2]
[352896360,1739393450050,-560.01,0.00013972,2]
[352896361,1739393450061,-1368.55,0.00013972,2]
[352896362,1739393450070,-947.77,0.00013972,2]
[352896363,1739393450080,-553.87,0.00013972,2]
[352896364,1739393450090,-517.62,0.00013972,2]
[352896365,1739393450099,-870.15,0.00013972,2]
[352896366,1739393450108,-447.2,0.00013972,2]
[352896367,1739393450118,-503.44,0.00013972,2]
[352896368,1739393450127,-956.76,0.00013972,2]
[352896369,1739393450137,-500.0,0.00013972,2]
[352896370,1739393450148,-596.03,0.00013972,2]
[352896371,1739393450158,-5877.95,0.00013972,2]
[352896372,1739393450168,-536.45,0.00013972,2]
[352896373,1739393450179,-3283.98,0.00013972,2]
[352896374,1739393450190,-942.97,0.00013972,2]
[352896375,1739393450199,-612.3,0.00013972,2]
[352896376,1739393450210,-2806.17,0.00013972,2]
[352896377,1739393450220,-738.41,0.00013972,2]
[352896378,1739393450230,-1169.21,0.00013972,2]
[352896379,1739393450239,-524.79,0.00013972,2]
[352896380,1739393450249,-2937.97,0.00013972,2]
[352896381,1739393450261,-1013.13,0.00013972,2]
[352896382,1739393450270,-1137.31,0.00013972,2]
[352896383,1739393450279,-650.94,0.00013972,2]
[352896384,1739393450289,-555.46,0.00013972,2]
[352896385,1739393450299,-1095.22,0.00013972,2]
[352896386,1739393450308,-6580.78,0.00013972,2]
[352896387,1739393450318,-1042.8,0.00013972,2]
[352896388,1739393450328,-500.0,0.00013972,2]
[352896389,1739393450338,-602.63,0.00013972,2]
[352896390,1739393450347,-818.07,0.00013972,2]
[352896391,1739393450357,-1421.63003606,0.00014109,2]
[352896392,1739393450367,-1569.02183705,0.00014109,2]
[352896393,1739393450376,-747.43360195,0.00014109,2]
[352896394,1739393450386,-307.22628127,0.00014109,2]
[352896395,1739393450398,-560.04230853,0.00014109,2]
[352896396,1739393450409,-1368.72160958,0.00014109,2]
[352896397,1739393450418,-947.81792848,0.00014109,2]
[352896398,1739393450428,-554.01417726,0.00014109,2]
[352896399,1739393450437,-517.7,0.00014109,2]
[352896400,1739393450446,-870.36082553,0.00014109,2]
[352896401,1739393450457,-503.63,0.00014109,2]
[352896402,1739393450468,-956.91293675,0.00014109,2]
[352896403,1739393450479,-344.11,0.00014109,2]
[352896404,1739393450488,-596.1,0.00014109,2]
[352896405,1739393450498,-5878.04,0.00014109,2]
[352896406,1739393450508,-536.64576768,0.00014109,2]
[352896407,1739393450517,-3284.06,0.00014109,2]
[352896408,1739393450526,-943.11411971,0.00014109,2]
[352896409,1739393450535,-612.41765703,0.00014109,2]
[352896410,1739393450546,-2806.17113629,0.00014109,2]
[352896411,1739393450555,-738.6202892,0.00014109,2]
[352896412,1739393450565,-1169.23,0.00014109,2]
[352896413,1739393450575,-524.82,0.00014109,2]
[352896414,1739393450680,-2938.01122396,0.00014109,2]
[352896415,1739393450690,-1013.24,0.00014109,2]
[352896416,1739393450700,-1137.37,0.00014109,2]
[352896417,1739393450709,-651.16514158,0.00014109,2]
[352896418,1739393450719,-555.52,0.00014109,2]
[352896419,1739393450731,-1095.31,0.00014109,2]
[352896420,1739393450740,-6580.85810773,0.00014109,2]
[352896421,1739393450750,-1042.8,0.00014109,2]
[352896422,1739393450761,-490.14276704,0.00014109,2]
[352896423,1739393450771,-602.85,0.00014109,2]
[352896424,1739393450780,-818.23,0.00014109,2]
[352896425,1739393450790,-285.942,0.0001414,2]
[352896426,1739393450800,-354.9109976,0.00014301,2]
[352896427,1739393450809,-200.9781787,0.00014308,2]
[352896428,1739393450819,-823.0,0.00014542,2]
[352896429,1739393450828,-2000.0,0.00014923,2]
[352896430,1739393450837,-305.0,0.00015,5]
[352896431,1739393450846,-166.0,0.00015068,2]
[352896432,1739393450856,-200.9781787,0.00015239,2]
[352896433,1739393450866,-1839.05,0.000153,2]
[352896434,1739393450876,-176.0,0.0001598,2]
[352896435,1739393450886,-500.0,0.00016148,2]
[352896436,1739393450896,-608.5,0.00016164,2]
[352896437,1739393450908,-200.9781787,0.0001617,2]
[352896438,1739393450917,-154.483,0.0001638,2]
[352896439,1739393450927,-413.114,0.00016383,2]
[352896440,1739393450936,-500.0,0.00016438,2]
[352896441,1739393450946,-2500.0,0.0001646,2]
[352896442,1739393450956,-544.5,0.00016463,2]
[352896443,1739393450966,-305.0,0.000165,6]
[352896444,1739393450976,-600.0,0.00016554,2]
[352896445,1739393450988,-299.537,0.00016609,2]
[352896446,1739393450998,-153.0,0.00016643,2]
[352896447,1739393451009,-13269.26255483,0.00016736,2]
[352896448,1739393451019,-354.9109976,0.00016775,2]
[352896449,1739393451029,-354.9109976,0.0001679,2]
[352896450,1739393451039,-354.9109976,0.0001679,2]
[352896451,1739393451049,-354.9109976,0.0001679,2]
[352896452,1739393451058,-354.9109976,0.0001679,2]
[352896453,1739393451068,-354.9109976,0.0001679,2]
[352896454,1739393451078,-354.9109976,0.0001679,2]
[352896455,1739393451088,-354.9109976,0.0001679,2]
[352896456,1739393451098,-354.9109976,0.0001679,2]
[352896457,1739393451107,-354.9109976,0.0001679,2]
[352896458,1739393451117,-1000.0,0.000169,2]
[352896459,1739393451126,-500.0,0.00016986,3]
[352896460,1739393451136,-1000.0,0.00017,4]
[352896461,1739393451146,-1000.0,0.00017,6]
[352896462,1739393451155,-157.32,0.00017,31]
[352896463,1739393451165,-157.32,0.00017,31]
[352896464,1739393451175,-157.32,0.00017,31]
[352896465,1739393451184,-157.32,0.00017,31]
[352896466,1739393451194,-157.32,0.00017,31]
[352896467,1739393451203,-157.32,0.00017,31]
[352896468,1739393451213,-157.32,0.00017,31]
[352896469,1739393451222,-316.0,0.00017,2]
[352896470,1739393451231,-709.1110828,0.00017041,2]
[352896471,1739393451241,-172.5364727,0.00017071,2]
[352896472,1739393451251,-162.0,0.00017084,2]
[352896473,1739393451262,-162.0,0.00017084,2]
[352896474,1739393451272,-162.0,0.00017084,2]
[352896475,1739393451281,-162.0,0.00017084,2]
[352896476,1739393451291,-162.0,0.00017084,2]
[352896477,1739393451300,-162.0,0.00017084,2]
[352896478,1739393451310,-162.0,0.00017084,2]
[352896479,1739393451320,-162.0,0.00017084,2]
[352896480,1739393451330,-162.0,0.00017084,2]
[352896481,1739393451339,-162.0,0.00017084,2]
[352896482,1739393451349,-162.0,0.00017084,2]
[352896483,1739393451358,-173.87,0.00017084,2]
[352896484,1739393451368,-152.0,0.00017084,2]
[352896485,1739393451378,-152.0,0.00017084,2]
[352896486,1739393451387,-152.0,0.00017084,2]
[352896487,1739393451397,-152.0,0.00017084,2]
[352896488,1739393451406,-152.0,0.00017084,2]
[352896489,1739393451415,-152.0,0.00017084,2]
[352896490,1739393451425,-152.0,0.00017084,2]
[352896491,1739393451434,-152.0,0.00017084,2]
[352896492,1739393451443,-152.0,0.00017084,2]
[352896493,1739393451453,-152.0,0.00017084,2]
[352896494,1739393451462,-152.0,0.00017084,2]
[352896495,1739393451471,-152.0,0.00017084,2]
[352896496,1739393451481,-152.0,0.00017084,2]
[352896497,1739393451490,-152.0,0.00017084,2]
[352896498,1739393451500,-152.0,0.00017084,2]
[352896499,1739393451511,-152.0,0.00017084,2]
[352896500,1739393451520,-152.0,0.00017084,2]
[352896501,1739393451530,-152.0,0.00017084,2]
[352896502,1739393451539,-258.19,0.00017084,2]
[352896503,1739393451549,-2000.0,0.000171,2]
[352896504,1739393451559,-2000.0,0.000171,2]
[352896505,1739393451568,-622.0,0.000171,2]
[352896506,1739393451577,-200.9781787,0.00017101,2]
[352896507,1739393451586,-152.0,0.0001712,2]
[352896508,1739393451596,-152.0,0.0001712,2]
[352896509,1739393451605,-152.0,0.0001712,2]
[352896510,1739393451614,-152.0,0.0001712,2]
[352896511,1739393451623,-152.0,0.0001712,2]
[352896512,1739393451633,-214.31,0.0001712,2]
[352896513,1739393451642,-279.296036,0.00017123,2]
[352896514,1739393451651,-500.0,0.0001717,2]
[352896515,1739393451661,-500.0,0.0001717,2]
[352896516,1739393451670,-500.0,0.0001717,2]
[352896517,1739393451679,-500.0,0.0001717,2]
[352896518,1739393451688,-206.2431714,0.00017178,2]
[352896519,1739393451698,-1000.0,0.00017192,5]
[352896520,1739393451707,-151.0,0.00017193,2]
[352896521,1739393451716,-151.0,0.00017193,2]
[352896522,1739393451725,-151.0,0.00017193,2]
[352896523,1739393451735,-151.0,0.00017193,2]
[352896524,1739393451745,-151.0,0.00017193,2]
[352896525,1739393451754,-151.0,0.00017193,2]
[352896526,1739393451767,-240.949919,0.00017193,2]
[352896527,1739393451777,-151.0,0.00017193,2]
[352896528,1739393451787,-151.0,0.00017193,2]
[352896529,1739393451797,-151.0,0.00017193,2]
[352896530,1739393451807,-151.0,0.00017193,2]
[352896531,1739393451817,-151.0,0.00017193,2]
[352896532,1739393451827,-151.0,0.00017193,2]
[352896533,1739393451836,-151.0,0.00017193,2]
[352896534,1739393451846,-151.0,0.00017193,2]
[352896535,1739393451856,-151.0,0.00017193,2]
[352896536,1739393451867,-151.0,0.00017193,2]
[352896537,1739393451877,-213.719728,0.00017193,2]
[352896538,1739393451887,-151.0,0.00017193,2]
[352896539,1739393451898,-151.0,0.00017193,2]
[352896540,1739393451911,-151.0,0.00017193,2]
[352896541,1739393451921,-151.0,0.00017193,2]
[352896542,1739393451930,-285.239364,0.00017193,2]
[352896543,1739393451942,-151.0,0.00017193,2]
[352896544,1739393451952,-175.789761,0.00017193,2]
[352896545,1739393451962,-151.0,0.00017193,2]
[352896546,1739393451972,-151.0,0.00017193,2]
[352896547,1739393451983,-151.0,0.00017193,2]
[352896548,1739393451994,-151.0,0.00017193,2]
[352896549,1739393452003,-151.0,0.00017193,2]
[352896550,1739393452016,-382.185398,0.00017193,2]
[352896551,1739393452025,-382.185398,0.00017193,2]
[352896552,1739393452035,-382.185398,0.00017193,2]
[352896553,1739393452044,-382.185398,0.00017193,2]
[352896554,1739393452053,-382.185398,0.00017193,2]
[352896555,1739393452063,-382.185398,0.00017193,2]
[352896556,1739393452075,-382.185398,0.00017193,2]
[352896557,1739393452084,-382.185398,0.00017193,2]
[352896558,1739393452093,-382.185398,0.00017193,2]
[352896559,1739393452104,-382.185398,0.00017193,2]
[352896560,1739393452113,-382.185398,0.00017193,2]
[352896561,1739393452124,-382.185398,0.00017193,2]
[352896562,1739393452134,-382.185398,0.00017193,2]
[352896563,1739393452144,-382.185398,0.00017193,2]
[352896564,1739393452154,-382.185398,0.00017193,2]
[352896565,1739393452164,-382.185398,0.00017193,2]
[352896566,1739393452174,-382.185398,0.00017193,2]
[352896567,1739393452184,-382.185398,0.00017193,2]
[352896568,1739393452193,-382.185398,0.00017193,2]
[352896569,1739393452204,-382.185408,0.00017193,2]
[352896570,1739393452213,-159.59363,0.00017193,2]
[352896571,1739393452223,-159.59363,0.00017193,2]
[352896572,1739393452233,-159.59363,0.00017193,2]
[352896573,1739393452243,-159.59363,0.00017193,2]
[352896574,1739393452253,-159.59363,0.00017193,2]
[352896575,1739393452264,-159.59363,0.00017193,2]
[352896576,1739393452273,-159.59363,0.00017193,2]
[352896577,1739393452283,-159.59363,0.00017193,2]
[352896578,1739393452292,-159.59363,0.00017193,2]
[352896579,1739393452301,-159.59363,0.00017193,2]
[352896580,1739393452310,-159.59363,0.00017193,2]
[352896581,1739393452321,-159.59363,0.00017193,2]
[352896582,1739393452331,-159.59363,0.00017193,2]
[352896583,1739393452340,-298.665351,0.00017193,2]
[352896584,1739393452349,-159.59363,0.00017193,2]
[352896585,1739393452359,-159.59363,0.00017193,2]
[352896586,1739393452368,-159.59363,0.00017193,2]
[352896587,1739393452378,-159.59363,0.00017193,2]
[352896588,1739393452387,-159.59363,0.00017193,2]
[352896589,1739393452396,-159.59363,0.00017193,2]
[352896590,1739393452405,-159.593622,0.00017193,2]
[352896591,1739393452414,-151.0,0.00017193,2]
[352896592,1739393452424,-151.0,0.00017193,2]
[352896593,1739393452433,-151.0,0.00017193,2]
[352896594,1739393452441,-151.0,0.00017193,2]
[352896595,1739393452451,-151.0,0.00017193,2]
[352896596,1739393452460,-151.0,0.00017193,2]
[352896597,1739393452470,-151.0,0.00017193,2]
[352896598,1739393452480,-224.954777,0.00017193,2]
[352896599,1739393452489,-150.0,0.000172,2]
[352896600,1739393452498,-151.0,0.000172,2]
[352896601,1739393452507,-151.0,0.000172,2]
[352896602,1739393452516,-151.0,0.000172,2]
[352896603,1739393452526,-151.0,0.000172,2]
[352896604,1739393452535,-239.475804,0.000172,2]
[352896605,1739393452544,-203.890225,0.000172,2]
[352896606,1739393452553,-203.890225,0.000172,2]
[352896607,1739393452562,-203.890225,0.000172,2]
[352896608,1739393452572,-203.890225,0.000172,2]
[352896609,1739393452581,-203.890225,0.000172,2]
[352896610,1739393452591,-203.890225,0.000172,2]
[352896611,1739393452599,-203.890225,0.000172,2]
[352896612,1739393452610,-203.890225,0.000172,2]
[352896613,1739393452620,-203.890225,0.000172,2]
[352896614,1739393452630,-203.890225,0.000172,2]
[352896615,1739393452641,-203.890225,0.000172,2]
[352896616,1739393452652,-203.890225,0.000172,2]
[352896617,1739393452661,-203.890225,0.000172,2]
[352896618,1739393452671,-203.890225,0.000172,2]
[352896619,1739393452682,-203.890225,0.000172,2]
[352896620,1739393452691,-203.890225,0.000172,2]
[352896621,1739393452701,-203.890225,0.000172,2]
[352896622,1739393452711,-203.890225,0.000172,2]
[352896623,1739393452809,-203.890225,0.000172,2]
[352896624,1739393452820,-203.890217,0.000172,2]
[352896625,1739393452830,-1500.0,0.000172,7]
[352896626,1739393452839,-1500.0,0.000172,7]
[352896627,1739393452850,-1500.0,0.000172,7]
[352896628,1739393452859,-1500.0,0.000172,7]
[352896629,1739393452869,-1500.0,0.000172,7]
[352896630,1739393452879,-1500.0,0.000172,7]
[352896631,1739393452889,-1500.0,0.000172,7]
[352896632,1739393452899,-1500.0,0.000172,7]
[352896633,1739393452913,-1500.0,0.000172,7]
[352896634,1739393452923,-1500.0,0.000172,7]
[352896635,1739393452933,-1500.0,0.000172,7]
[352896636,1739393452942,-1500.0,0.000172,7]
[352896637,1739393452952,-1500.0,0.000172,7]
[352896638,1739393452962,-1500.0,0.000172,7]
[352896639,1739393452971,-1500.0,0.000172,7]
[352896640,1739393452981,-1500.0,0.000172,7]
[352896641,1739393452991,-1500.0,0.000172,7]
[352896642,1739393453001,-1500.0,0.000172,7]
[352896643,1739393453011,-1500.0,0.000172,7]
[352896644,1739393453021,-1500.0,0.000172,7]
[352896645,1739393453031,-1500.0,0.000172,7]
[352896646,1739393453040,-1500.0,0.000172,7]
[352896647,1739393453050,-1500.0,0.000172,7]
[352896648,1739393453059,-1500.0,0.000172,7]
[352896649,1739393453069,-1500.0,0.000172,7]
[352896650,1739393453078,-1500.0,0.000172,7]
[352896651,1739393453088,-1500.0,0.000172,7]
[352896652,1739393453097,-1500.0,0.000172,7]
[352896653,1739393453108,-151.0,0.000172,2]
[352896654,1739393453118,-1500.0,0.000172,7]
[352896655,1739393453127,-151.0,0.000172,2]
[352896656,1739393453136,-1500.0,0.000172,7]
[352896657,1739393453145,-151.0,0.000172,2]
[352896658,1739393453155,-1500.0,0.000172,7]
[352896659,1739393453164,-151.0,0.000172,2]
[352896660,1739393453174,-1500.0,0.000172,7]
[352896661,1739393453183,-151.0,0.000172,2]
[352896662,1739393453192,-1500.0,0.000172,7]
[352896663,1739393453201,-151.0,0.000172,2]
[352896664,1739393453210,-151.0,0.000172,2]
[352896665,1739393453219,-151.0,0.000172,2]
[352896666,1739393453228,-1500.0,0.000172,7]
[352896667,1739393453238,-151.0,0.000172,2]
[352896668,1739393453247,-1500.0,0.000172,7]
[352896669,1739393453256,-151.0,0.000172,2]
[352896670,1739393453265,-1500.0,0.000172,7]
[352896671,1739393453275,-151.0,0.000172,2]
[352896672,1739393453284,-1500.0,0.000172,7]
[352896673,1739393453293,-151.0,0.000172,2]
[352896674,1739393453302,-151.0,0.000172,2]
[352896675,1739393453312,-1500.0,0.000172,7]
[352896676,1739393453321,-151.0,0.000172,2]
[352896677,1739393453331,-151.0,0.000172,2]
[352896678,1739393453340,-1500.0,0.000172,7]
[352896679,1739393453349,-1500.0,0.000172,7]
[352896680,1739393453358,-151.0,0.000172,2]
[352896681,1739393453367,-151.0,0.000172,2]
[352896682,1739393453377,-1500.0,0.000172,7]
[352896683,1739393453386,-151.0,0.000172,2]
[352896684,1739393453395,-151.0,0.000172,2]
[352896685,1739393453404,-1500.0,0.000172,7]
[352896686,1739393453414,-151.0,0.000172,2]
[352896687,1739393453423,-151.0,0.000172,2]
[352896688,1739393453433,-151.0,0.000172,2]
[352896689,1739393453442,-786.44602,0.000172,7]
[352896690,1739393453451,-151.0,0.000172,2]
[352896691,1739393453460,-196.736681,0.000172,2]
[352896692,1739393453470,-151.0,0.000172,2]
[352896693,1739393453479,-155.642172,0.000172,2]
[352896694,1739393453489,-1231.561486,0.000172,2]
[352896695,1739393453498,-1231.561486,0.000172,2]
[352896696,1739393453508,-1231.561486,0.000172,2]
[352896697,1739393453517,-1231.561486,0.000172,2]
[352896698,1739393453527,-1231.561486,0.000172,2]
[352896699,1739393453536,-1231.561486,0.000172,2]
[352896700,1739393453545,-1231.561486,0.000172,2]
[352896701,1739393453555,-1231.561486,0.000172,2]
[352896702,1739393453564,-1231.561486,0.000172,2]
[352896703,1739393453573,-1231.561486,0.000172,2]
[352896704,1739393453582,-1231.561486,0.000172,2]
[352896705,1739393453592,-1231.561486,0.000172,2]
[352896706,1739393453601,-1231.561486,0.000172,2]
[352896707,1739393453610,-1231.561486,0.000172,2]
[352896708,1739393453619,-1231.561486,0.000172,2]
[352896709,1739393453628,-1231.561486,0.000172,2]
[352896710,1739393453637,-1231.561486,0.000172,2]
[352896711,1739393453646,-1231.561486,0.000172,2]
[352896712,1739393453656,-1231.561486,0.000172,2]
[352896713,1739393453665,-1231.561492,0.000172,2]
[352896714,1739393453674,-151.0,0.000172,2]
[352896715,1739393453684,-151.0,0.000172,2]
[352896716,1739393453693,-151.0,0.000172,2]
[352896717,1739393453702,-151.0,0.000172,2]
[352896718,1739393453712,-151.0,0.000172,2]
[352896719,1739393453723,-151.0,0.000172,2]
[352896720,1739393453735,-597.166957,0.000172,2]
[352896721,1739393453744,-597.166957,0.000172,2]
[352896722,1739393453755,-597.166957,0.000172,2]
[352896723,1739393453765,-597.166957,0.000172,2]
[352896724,1739393453775,-597.166957,0.000172,2]
[352896725,1739393453784,-597.166957,0.000172,2]
[352896726,1739393453795,-597.166957,0.000172,2]
[352896727,1739393453804,-597.166957,0.000172,2]
[352896728,1739393453813,-597.166957,0.000172,2]
[352896729,1739393453823,-597.166957,0.000172,2]
[352896730,1739393453832,-597.166957,0.000172,2]
[352896731,1739393453841,-597.166957,0.000172,2]
[352896732,1739393453850,-597.166957,0.000172,2]
[352896733,1739393453860,-597.166957,0.000172,2]
[352896734,1739393453869,-597.166957,0.000172,2]
[352896735,1739393453878,-597.166957,0.000172,2]